fUSD/lending_fUSD_20260521
["ID","MTS","AMOUNT","RATE_DAILY","PERIOD"]
[422740048,1779340895000,-288.0,0.00035937,30]
[422740049,1779340895000,-358.0,0.00035937,30]
[422740047,1779340895000,-343.0,0.00035937,30]
[422740054,1779340895000,-161.0,0.00035938,30]
[422740068,1779340896000,-1125.9836589,0.00036,120]
[422740076,1779340896000,-635.07640635,0.00036,120]
[422740072,1779340896000,-327.57781408,0.00036,120]
[422740070,1779340896000,-687.73888643,0.00036,120]
[422740071,1779340896000,-1728.54365138,0.00036,120]
[422740067,1779340896000,-182.4443645,0.00036,120]
[422740066,1779340896000,-741.18359465,0.00036,120]
[422740061,1779340896000,-600.0,0.00036,120]
[422740064,1779340896000,-6500.0,0.00036,120]
[422740065,1779340896000,-1797.41475157,0.00036,120]
[422740063,1779340896000,-1248.82,0.00036,30]
[422740073,1779340896000,-203.3875785,0.00036,120]
[422740060,1779340896000,-614.5634894,0.00036,120]
[422740062,1779340896000,-1000.0,0.00036,120]
[422740069,1779340896000,-824.61605297,0.00036,120]
[422740075,1779340896000,-324.48021091,0.00036,120]
[422740087,1779340896000,-154.90923201,0.000362,120]
[422740078,1779340896000,-608.18167511,0.00036,120]
[422740074,1779340896000,-294.926551,0.00036,120]
[422740091,1779340896000,-150.0,0.00036715,30]
[422740093,1779340896000,-45103.88438908,0.0003677,120]
[422740088,1779340896000,-453.6,0.0003637,114]
[422740089,1779340896000,-445261.0,0.000364,30]
[422740085,1779340896000,-928.65,0.000361,30]
[422740084,1779340896000,-291.7,0.00036,120]
[422740090,1779340896000,-1355.5099,0.000365,30]
[422740080,1779340896000,-1880.51018112,0.00036,120]
[422740083,1779340896000,-1006.89808847,0.00036,120]
[422740082,1779340896000,-590.43081047,0.00036,120]
[422740081,1779340896000,-1136.29830075,0.00036,120]
[422740077,1779340896000,-169.05101573,0.00036,120]
[422740079,1779340896000,-920.91228467,0.00036,120]
[422740086,1779340896000,-2324.6,0.00036153,30]
[422740101,1779340897000,-453.61,0.0003697,120]
[422740094,1779340897000,-29071.74203819,0.00036838,30]
[422740095,1779340897000,-495.92369733,0.00036846,30]
[422740097,1779340897000,-524.04,0.00036873,120]
[422740096,1779340897000,-182.64357193,0.00036846,30]
[422740098,1779340897000,-182.42,0.00036873,120]
[422740100,1779340897000,-2868.8,0.000369,120]
[422740099,1779340897000,-151.52,0.00036873,120]
[422740103,1779340897000,-511.0968494,0.00037,64]
[422740104,1779340897000,-162.91,0.00037,120]
[422740105,1779340897000,-1000.0,0.00037,120]
[422740106,1779340897000,-23307.68645719,0.00037,60]
[422740107,1779340897000,-11443.44598887,0.00037,30]
[422740108,1779340897000,-177608.89127855,0.00037,30]
[422740109,1779340897000,-666.00230018,0.00037,120]
[422740111,1779340897000,-286435.34316007,0.00037033,30]
[422740110,1779340897000,-153.0,0.00037,120]
[422740102,1779340897000,-1000.0,0.00036986,120]
[422740112,1779340916000,1858.73175329,0.000274,120]
[422740113,1779340919000,4914.52185734,0.0002,120]
[422740115,1779340926000,359.0283324,0.0002876,120]
[422740117,1779340931000,508.24080402,0.0002,120]
[422740119,1779340958000,3454.94,0.00028767,120]
[422740124,1779341048000,325.02,0.000149,120]
[422740126,1779341099000,532.91972173,0.00028767,120]
[422740129,1779341145000,160.47,0.00028199,120]
[422740130,1779341167000,1156.12,0.00028767,120]
[422740136,1779341210000,-177.2,0.00013462,2]
[422740135,1779341210000,-160.47,0.00013404,2]
[422740133,1779341210000,-150.0,0.00013058,2]
[422740134,1779341210000,-152.36,0.00013374,2]
[422740137,1779341210000,-166.66,0.00013699,2]
[422740142,1779341210000,-150.0,0.00013999,2]
[422740140,1779341210000,-215.23956962,0.00013867,2]
[422740139,1779341210000,-166.66,0.00013851,2]
[422740141,1779341210000,-2000.0,0.00013972,2]
[422740143,1779341210000,-2188.37686805,0.00014,2]
[422740138,1779341210000,-200.0,0.00013699,2]
[422740146,1779341241000,292.52,0.000149,120]
[422740154,1779341389000,5136.87,0.00028767,120]
[422740155,1779341400000,8417.2,0.00028767,120]
[422740157,1779341429000,263.27,0.000149,120]
[422740185,1779341438000,-7889.0,0.00014,2]
[422740189,1779341438000,-8254.1248,0.00014055,2]
[422740191,1779341438000,-1054.6298,0.00014056,2]
[422740198,1779341438000,-166.66,0.00014133,2]
[422740193,1779341438000,-2000.0,0.00014056,2]
[422740204,1779341438000,-166.66,0.00014278,2]
[422740195,1779341438000,-2500.0,0.00014056,2]
[422740202,1779341438000,-714.05531498,0.0001425,2]
[422740187,1779341438000,-7889.0,0.00014,2]
[422740206,1779341438000,-300.0,0.00014364,2]
[422740208,1779341438000,-2500.0,0.00014364,2]
[422740221,1779341438000,-3634.0,0.00014454,2]
[422740200,1779341438000,-152.0,0.00014216,7]
[422740182,1779341438000,-7889.0,0.00014,2]
[422740177,1779341438000,-300.0,0.00013851,2]
[422740181,1779341438000,-5700.62313195,0.00014,2]
[422740180,1779341438000,-150.0,0.00013999,2]
[422740179,1779341438000,-166.66,0.00013988,2]
[422740176,1779341438000,-300.0,0.00013851,2]
[422740178,1779341438000,-2500.0,0.00013876,2]
[422740175,1779341438000,-86.32482718,0.00013851,2]
[422740174,1779341438000,-213.67517282,0.00013851,2]
[422740173,1779341438000,-166.66,0.00013843,2]
[422740172,1779341438000,-215.23956962,0.00013775,2]
[422740171,1779341438000,-1445.86876159,0.00013771,2]
[422740170,1779341438000,-554.13123841,0.00013771,2]
[422740169,1779341438000,-166.66,0.00013699,2]
[422740168,1779341438000,-18858.46,0.00013608,2]
[422740223,1779341438000,-1354.0,0.00014454,2]
[422740183,1779341438000,-7889.0,0.00014,2]
[422740225,1779341438000,-500.0,0.00014496,2]
[422740210,1779341438000,-2500.0,0.00014364,2]
[422740214,1779341438000,-166.66,0.00014423,2]
[422740256,1779341438000,-172.59939721,0.00014895,2]
[422740258,1779341438000,-25000.0,0.000149,3]
[422740254,1779341438000,-172.59939723,0.0001489,2]
[422740274,1779341438000,-300.0,0.00014969,2]
[422740276,1779341438000,-898.9,0.00014986,2]
[422740264,1779341438000,-153.63733913,0.000149,2]
[422740261,1779341438000,-172.59939721,0.000149,2]
[422740266,1779341438000,-5000.0,0.000149,2]
[422740268,1779341438000,-430.73302154,0.000149,2]
[422740272,1779341438000,-2500.0,0.00014969,2]
[422740270,1779341438000,-150.0,0.00014925,2]
[422740280,1779341438000,-2273.04,0.00014986,2]
[422740212,1779341438000,-2500.0,0.00014364,2]
[422740284,1779341438000,-35269.0,0.00014986,2]
[422740278,1779341438000,-500.0,0.00014986,2]
[422740252,1779341438000,-153.63733913,0.00014883,2]
[422740282,1779341438000,-500.0,0.00014986,2]
[422740250,1779341438000,-890.69192782,0.00014878,2]
[422740218,1779341438000,-150.467,0.00014454,2]
[422740246,1779341438000,-153.63733913,0.00014867,2]
[422740226,1779341438000,-2752.52,0.00014497,2]
[422740228,1779341438000,-18858.46,0.00014497,2]
[422740230,1779341438000,-401.92064943,0.000147,2]
[422740232,1779341438000,-890.69192789,0.000148,2]
[422740216,1779341438000,-1274.931,0.00014454,2]
[422740238,1779341438000,-890.69192782,0.00014833,2]
[422740248,1779341438000,-890.69192782,0.00014867,2]
[422740244,1779341438000,-890.69192782,0.00014856,2]
[422740236,1779341438000,-890.69192782,0.00014822,2]
[422740242,1779341438000,-153.63733913,0.0001485,2]
[422740240,1779341438000,-890.69192782,0.00014844,2]
[422740234,1779341438000,-890.69192782,0.00014811,2]
[422740372,1779341439000,-793.84708473,0.00014996,2]
[422740373,1779341439000,-793.84708473,0.00014996,2]
[422740370,1779341439000,-793.84708473,0.00014996,2]
[422740367,1779341439000,-793.84708473,0.00014996,2]
[422740362,1779341439000,-793.84708473,0.00014996,2]
[422740364,1779341439000,-793.84708473,0.00014996,2]
[422740360,1779341439000,-793.84708473,0.00014996,2]
[422740358,1779341439000,-793.84708473,0.00014996,2]
[422740347,1779341439000,-500.0,0.00014996,2]
[422740369,1779341439000,-793.84708473,0.00014996,2]
[422740349,1779341439000,-500.0,0.00014996,2]
[422740366,1779341439000,-793.84708473,0.00014996,2]
[422740368,1779341439000,-793.84708473,0.00014996,2]
[422740383,1779341439000,-793.84708473,0.00014996,2]
[422740376,1779341439000,-793.84708473,0.00014996,2]
[422740379,1779341439000,-793.84708473,0.00014996,2]
[422740378,1779341439000,-793.84708473,0.00014996,2]
[422740380,1779341439000,-793.84708473,0.00014996,2]
[422740381,1779341439000,-793.84708473,0.00014996,2]
[422740384,1779341439000,-793.84708473,0.00014996,2]
[422740382,1779341439000,-793.84708473,0.00014996,2]
[422740389,1779341439000,-793.84708473,0.00014996,2]
[422740385,1779341439000,-793.84708473,0.00014996,2]
[422740388,1779341439000,-793.84708473,0.00014996,2]
[422740390,1779341439000,-793.84708473,0.00014996,2]
[422740387,1779341439000,-793.84708473,0.00014996,2]
[422740345,1779341439000,-500.0,0.00014996,2]
[422740386,1779341439000,-793.84708473,0.00014996,2]
[422740374,1779341439000,-793.84708473,0.00014996,2]
[422740356,1779341439000,-500.0,0.00014996,2]
[422740317,1779341439000,-500.0,0.00014996,2]
[422740354,1779341439000,-500.0,0.00014996,2]
[422740391,1779341439000,-793.84708473,0.00014996,2]
[422740286,1779341439000,-567.82012895,0.0001499,2]
[422740288,1779341439000,-567.82012895,0.0001499,2]
[422740303,1779341439000,-500.0,0.00014996,2]
[422740305,1779341439000,-500.0,0.00014996,2]
[422740296,1779341439000,-500.0,0.00014996,2]
[422740300,1779341439000,-500.0,0.00014996,2]
[422740292,1779341439000,-500.0,0.00014996,2]
[422740290,1779341439000,-567.82012895,0.0001499,2]
[422740307,1779341439000,-500.0,0.00014996,2]
[422740294,1779341439000,-500.0,0.00014996,2]
[422740298,1779341439000,-500.0,0.00014996,2]
[422740309,1779341439000,-500.0,0.00014996,2]
[422740311,1779341439000,-500.0,0.00014996,2]
[422740343,1779341439000,-500.0,0.00014996,2]
[422740313,1779341439000,-500.0,0.00014996,2]
[422740319,1779341439000,-500.0,0.00014996,2]
[422740321,1779341439000,-500.0,0.00014996,2]
[422740330,1779341439000,-500.0,0.00014996,2]
[422740324,1779341439000,-500.0,0.00014996,2]
[422740326,1779341439000,-500.0,0.00014996,2]
[422740322,1779341439000,-500.0,0.00014996,2]
[422740328,1779341439000,-500.0,0.00014996,2]
[422740332,1779341439000,-500.0,0.00014996,2]
[422740334,1779341439000,-500.0,0.00014996,2]
[422740336,1779341439000,-500.0,0.00014996,2]
[422740338,1779341439000,-500.0,0.00014996,2]
[422740340,1779341439000,-500.0,0.00014996,2]
[422740351,1779341439000,-423.61932456,0.00014996,2]
[422740352,1779341439000,-500.0,0.00014996,2]
[422740315,1779341439000,-500.0,0.00014996,2]
[422740393,1779341439000,-793.84708473,0.00014996,2]
[422740423,1779341439000,-898.9,0.00014998,2]
[422740392,1779341439000,-793.84708473,0.00014996,2]
[422740430,1779341439000,-165.16922387,0.00014999,2]
[422740431,1779341439000,-193.55219869,0.00014999,2]
[422740434,1779341439000,-500.0,0.00014999,2]
[422740432,1779341439000,-500.0,0.00014999,2]
[422740433,1779341439000,-500.0,0.00014999,2]
[422740435,1779341439000,-500.0,0.00014999,2]
[422740437,1779341439000,-500.0,0.00014999,2]
[422740438,1779341439000,-500.0,0.00014999,2]
[422740436,1779341439000,-500.0,0.00014999,2]
[422740441,1779341439000,-500.0,0.00014999,2]
[422740444,1779341439000,-382.38269634,0.00014999,2]
[422740440,1779341439000,-500.0,0.00014999,2]
[422740439,1779341439000,-500.0,0.00014999,2]
[422740443,1779341439000,-500.0,0.00014999,2]
[422740442,1779341439000,-500.0,0.00014999,2]
[422740445,1779341439000,-898.9,0.00014999,2]
[422740446,1779341439000,-898.9,0.00014999,2]
[422740448,1779341439000,-898.9,0.00014999,2]
[422740447,1779341439000,-898.9,0.00014999,2]
[422740450,1779341439000,-898.9,0.00014999,2]
[422740454,1779341439000,-898.9,0.00014999,2]
[422740452,1779341439000,-898.9,0.00014999,2]
[422740449,1779341439000,-898.9,0.00014999,2]
[422740451,1779341439000,-898.9,0.00014999,2]
[422740457,1779341439000,-898.9,0.00014999,2]
[422740455,1779341439000,-898.9,0.00014999,2]
[422740456,1779341439000,-898.9,0.00014999,2]
[422740453,1779341439000,-898.9,0.00014999,2]
[422740394,1779341439000,-793.84708473,0.00014996,2]
[422740429,1779341439000,-467.55142972,0.00014999,2]
[422740424,1779341439000,-500.0,0.00014998,2]
[422740458,1779341439000,-898.9,0.00014999,2]
[422740425,1779341439000,-2273.04,0.00014998,2]
[422740427,1779341439000,-209194.11636134,0.00014999,2]
[422740395,1779341439000,-793.84708473,0.00014996,2]
[422740396,1779341439000,-793.84708473,0.00014996,2]
[422740398,1779341439000,-793.84708473,0.00014996,2]
[422740402,1779341439000,-793.84708473,0.00014996,2]
[422740399,1779341439000,-793.84708473,0.00014996,2]
[422740401,1779341439000,-793.84708473,0.00014996,2]
[422740404,1779341439000,-793.84708473,0.00014996,2]
[422740403,1779341439000,-793.84708473,0.00014996,2]
[422740400,1779341439000,-793.84708473,0.00014996,2]
[422740405,1779341439000,-793.84708473,0.00014996,2]
[422740407,1779341439000,-793.84708473,0.00014996,2]
[422740408,1779341439000,-793.84708473,0.00014996,2]
[422740406,1779341439000,-793.84708473,0.00014996,2]
[422740409,1779341439000,-793.84708473,0.00014996,2]
[422740397,1779341439000,-793.84708473,0.00014996,2]
[422740411,1779341439000,-779.41350136,0.00014996,2]
[422740428,1779341439000,-500.0,0.00014999,2]
[422740412,1779341439000,-779.41350136,0.00014996,2]
[422740420,1779341439000,-779.41350136,0.00014996,2]
[422740422,1779341439000,-500.0,0.00014998,2]
[422740421,1779341439000,-952.61650162,0.00014996,2]
[422740419,1779341439000,-779.41350136,0.00014996,2]
[422740426,1779341439000,-523.28200266,0.00014998,2]
[422740415,1779341439000,-779.41350136,0.00014996,2]
[422740418,1779341439000,-779.41350136,0.00014996,2]
[422740417,1779341439000,-779.41350136,0.00014996,2]
[422740410,1779341439000,-779.41350136,0.00014996,2]
[422740414,1779341439000,-779.41350136,0.00014996,2]
[422740413,1779341439000,-779.41350136,0.00014996,2]
[422740416,1779341439000,-779.41350136,0.00014996,2]
[422740475,1779341440000,-500.0,0.00014999,2]
[422740476,1779341440000,-500.0,0.00014999,2]
[422740482,1779341440000,-2273.04,0.00014999,2]
[422740484,1779341440000,-2273.04,0.00014999,2]
[422740479,1779341440000,-337.40177697,0.00014999,2]
[422740478,1779341440000,-500.0,0.00014999,2]
[422740481,1779341440000,-2273.04,0.00014999,2]
[422740480,1779341440000,-150.0,0.00014999,2]
[422740473,1779341440000,-500.0,0.00014999,2]
[422740486,1779341440000,-2273.04,0.00014999,2]
[422740477,1779341440000,-500.0,0.00014999,2]
[422740474,1779341440000,-500.0,0.00014999,2]
[422740467,1779341440000,-500.0,0.00014999,2]
[422740471,1779341440000,-500.0,0.00014999,2]
[422740470,1779341440000,-500.0,0.00014999,2]
[422740466,1779341440000,-898.94193604,0.00014999,2]
[422740464,1779341440000,-898.9,0.00014999,2]
[422740465,1779341440000,-898.9,0.00014999,2]
[422740468,1779341440000,-500.0,0.00014999,2]
[422740469,1779341440000,-500.0,0.00014999,2]
[422740463,1779341440000,-898.9,0.00014999,2]
[422740462,1779341440000,-898.9,0.00014999,2]
[422740461,1779341440000,-898.9,0.00014999,2]
[422740459,1779341440000,-898.9,0.00014999,2]
[422740460,1779341440000,-898.9,0.00014999,2]
[422740485,1779341440000,-2273.04,0.00014999,2]
[422740472,1779341440000,-500.0,0.00014999,2]
[422740488,1779341440000,-2273.04,0.00014999,2]
[422740500,1779341440000,-2273.04,0.00014999,2]
[422740490,1779341440000,-2273.04,0.00014999,2]
[422740516,1779341440000,-596.298,0.00015,2]
[422740517,1779341440000,-37598.72340411,0.00015,2]
[422740515,1779341440000,-11942.69564278,0.00015,2]
[422740514,1779341440000,-1000.0,0.00015,2]
[422740513,1779341440000,-1963.73400132,0.00015,2]
[422740512,1779341440000,-1058.85927097,0.00015,2]
[422740509,1779341440000,-150.0,0.00015,2]
[422740510,1779341440000,-148069.84253477,0.00015,2]
[422740508,1779341440000,-1146.0,0.00015,5]
[422740506,1779341440000,-780.0,0.00015,5]
[422740487,1779341440000,-2273.04,0.00014999,2]
[422740511,1779341440000,-1445.60818973,0.00015,2]
[422740505,1779341440000,-305.53854586,0.00014999,2]
[422740507,1779341440000,-1234.0,0.00015,5]
[422740503,1779341440000,-2273.04,0.00014999,2]
[422740489,1779341440000,-2273.04,0.00014999,2]
[422740491,1779341440000,-2273.04,0.00014999,2]
[422740504,1779341440000,-2273.27418747,0.00014999,2]
[422740496,1779341440000,-2273.04,0.00014999,2]
[422740497,1779341440000,-2273.04,0.00014999,2]
[422740492,1779341440000,-2273.04,0.00014999,2]
[422740495,1779341440000,-2273.04,0.00014999,2]
[422740494,1779341440000,-2273.04,0.00014999,2]
[422740499,1779341440000,-2273.04,0.00014999,2]
[422740502,1779341440000,-2273.04,0.00014999,2]
[422740501,1779341440000,-2273.04,0.00014999,2]
[422740498,1779341440000,-2273.04,0.00014999,2]
[422740521,1779341441000,-831.64957871,0.00015,2]
[422740522,1779341441000,-267.94709962,0.000147,2]
[422740523,1779341441000,-10057.17093066,0.00015,2]
[422740524,1779341441000,-31213.891429,0.00015,2]
[422740526,1779341441000,-183004.55994905,0.00015,2]
[422740525,1779341441000,-2076.89293484,0.00015,2]
[422740528,1779341441000,-103587.09741841,0.00015,2]
[422740529,1779341441000,-13154.45340947,0.00015,2]
[422740530,1779341441000,-53665.9145601,0.00015,2]
[422740531,1779341441000,-14339.72992309,0.00015,2]
[422740537,1779341441000,-1573.41116761,0.00015,2]
[422740540,1779341441000,-414.28493152,0.00015,2]
[422740527,1779341441000,-168016.31007232,0.00015,2]
[422740552,1779341443000,-267.94709963,0.000147,2]
[422740554,1779341443000,-9207.77851821,0.00015,2]
[422740553,1779341443000,-890.69192782,0.00014889,2]
[422740555,1779341443000,-317.37879369,0.00015,2]
[422740551,1779341443000,-1370.13596346,0.00014056,2]
[422740550,1779341443000,-1129.86403654,0.00014056,2]
[422740566,1779341446000,-279.58499917,0.00014454,2]
[422740569,1779341446000,-1390.63789954,0.00015,2]
[422740567,1779341446000,-345.41500083,0.00014454,2]
[422740571,1779341446000,-2302.95831918,0.00015,2]
[422740570,1779341446000,-8286.61633996,0.00015,2]
[422740572,1779341446000,-350.625,0.00015,2]
[422740573,1779341446000,-6810.49879289,0.00015,2]
[422740568,1779341446000,-267.94709963,0.000147,2]
[422740700,1779341459000,-93930.62998541,0.00015,7]
[422740691,1779341459000,-3644353.77410943,0.00015,2]
[422740692,1779341459000,-8085.70152943,0.00015,2]
[422740697,1779341459000,-508260.24666586,0.00015,2]
[422740696,1779341459000,-432190.64637166,0.00015,2]
[422740695,1779341459000,-450203.14214304,0.00015,2]
[422740694,1779341459000,-2019803.64486695,0.00015,2]
[422740698,1779341459000,-165900.307883,0.00015,2]
[422740693,1779341459000,-5230304.81911811,0.00015,2]
[422740701,1779341459000,-688618.91005752,0.00015,2]
[422740702,1779341459000,-2467327.25321484,0.00015,2]
[422740703,1779341459000,-510667.05604523,0.00015,2]
[422740705,1779341459000,-212138.41107996,0.00015,2]
[422740706,1779341459000,-1204677.62817632,0.00015,2]
[422740704,1779341459000,-660862.96694661,0.00015,2]
[422740707,1779341459000,-133237.94303504,0.00015,2]
[422740708,1779341459000,-229609.83794756,0.00015,2]
[422740699,1779341459000,-598.0,0.00015,2]
[422740752,1779341460000,-6293.60786949,0.00015259,2]
[422740750,1779341460000,-1872.0,0.000152,2]
[422740748,1779341460000,-5000.0,0.00015136,2]
[422740749,1779341460000,-900.0,0.00015155,2]
[422740745,1779341460000,-15000.0,0.0001508,2]
[422740743,1779341460000,-1031.680288,0.00015068,2]
[422740746,1779341460000,-300.0,0.000151,2]
[422740744,1779341460000,-1031.680298,0.00015068,2]
[422740751,1779341460000,-2108.0,0.000152,2]
[422740741,1779341460000,-1031.680288,0.00015068,2]
[422740740,1779341460000,-1031.680288,0.00015068,2]
[422740747,1779341460000,-255.0,0.00015119,2]
[422740753,1779341460000,-10000.0,0.00015272,2]
[422740757,1779341460000,-2270.89528272,0.00015807,2]
[422740758,1779341460000,-152.0,0.00015826,5]
[422740756,1779341460000,-1237.65657856,0.000155,2]
[422740754,1779341460000,-1517.64,0.000153,2]
[422740759,1779341460000,-165.38914566,0.00015826,5]
[422740761,1779341460000,-215.23956962,0.00016,3]
[422740763,1779341460000,-300.0,0.00016,2]
[422740762,1779341460000,-2000.0,0.00016,2]
[422740765,1779341460000,-2000.0,0.0001601,2]
[422740764,1779341460000,-200.0,0.00016,2]
[422740768,1779341460000,-345.04,0.000161,14]
[422740767,1779341460000,-9861.26,0.000161,2]
[422740766,1779341460000,-2723.008324,0.0001602,2]
[422740742,1779341460000,-1031.680288,0.00015068,2]
[422740755,1779341460000,-2000.0,0.00015492,2]
[422740739,1779341460000,-1031.680288,0.00015068,2]
[422740716,1779341460000,-938121.21074966,0.00015,2]
[422740737,1779341460000,-1031.680288,0.00015068,2]
[422740709,1779341460000,-2232398.27391187,0.00015,2]
[422740711,1779341460000,-300.00000001,0.00015,3]
[422740712,1779341460000,-1033.17,0.00015,2]
[422740710,1779341460000,-351.15114135,0.00015,2]
[422740713,1779341460000,-3723379.09994355,0.00015,2]
[422740717,1779341460000,-12326.47,0.00015,2]
[422740719,1779341460000,-1094.82,0.00015,2]
[422740714,1779341460000,-2777087.98216672,0.00015,2]
[422740718,1779341460000,-111448.57758044,0.00015,2]
[422740715,1779341460000,-985171.4635882,0.00015,2]
[422740720,1779341460000,-1023361.12877395,0.00015,2]
[422740769,1779341460000,-150.0,0.00016239,2]
[422740721,1779341460000,-44995.16508368,0.00015,3]
[422740738,1779341460000,-1031.680288,0.00015068,2]
[422740723,1779341460000,-52292.94040723,0.00015,2]
[422740722,1779341460000,-326173.77981511,0.00015,2]
[422740725,1779341460000,-1031.680288,0.00015068,2]
[422740728,1779341460000,-1031.680288,0.00015068,2]
[422740727,1779341460000,-1031.680288,0.00015068,2]
[422740732,1779341460000,-1031.680288,0.00015068,2]
[422740733,1779341460000,-1031.680288,0.00015068,2]
[422740729,1779341460000,-1031.680288,0.00015068,2]
[422740731,1779341460000,-1031.680288,0.00015068,2]
[422740730,1779341460000,-1031.680288,0.00015068,2]
[422740734,1779341460000,-1031.680288,0.00015068,2]
[422740726,1779341460000,-1031.680288,0.00015068,2]
[422740735,1779341460000,-1031.680288,0.00015068,2]
[422740736,1779341460000,-1031.680288,0.00015068,2]
[422740724,1779341460000,-151.000006,0.00015,2]
[422740771,1779341460000,-288.0,0.0001629,2]
[422740760,1779341460000,-249.0,0.00016,2]
[422740772,1779341460000,-358.0,0.0001629,2]
[422740804,1779341460000,-2402.1,0.00016438,2]
[422740808,1779341460000,-406.895679,0.00016438,2]
[422740806,1779341460000,-230.05,0.00016438,2]
[422740807,1779341460000,-406.895679,0.00016438,2]
[422740809,1779341460000,-406.895679,0.00016438,2]
[422740811,1779341460000,-406.895679,0.00016438,2]
[422740810,1779341460000,-406.895679,0.00016438,2]
[422740812,1779341460000,-406.895679,0.00016438,2]
[422740815,1779341460000,-406.895679,0.00016438,2]
[422740814,1779341460000,-406.895679,0.00016438,2]
[422740816,1779341460000,-406.895679,0.00016438,2]
[422740820,1779341460000,-406.895679,0.00016438,2]
[422740813,1779341460000,-406.895679,0.00016438,2]
[422740818,1779341460000,-406.895679,0.00016438,2]
[422740822,1779341460000,-406.895679,0.00016438,2]
[422740817,1779341460000,-406.895679,0.00016438,2]
[422740821,1779341460000,-406.895679,0.00016438,2]
[422740819,1779341460000,-406.895679,0.00016438,2]
[422740824,1779341460000,-406.895679,0.00016438,2]
[422740825,1779341460000,-406.895679,0.00016438,2]
[422740823,1779341460000,-406.895679,0.00016438,2]
[422740827,1779341460000,-151.0,0.00016438,2]
[422740826,1779341460000,-406.895677,0.00016438,2]
[422740828,1779341460000,-151.0,0.00016438,2]
[422740829,1779341460000,-159.017446,0.00016438,2]
[422740831,1779341460000,-599.763149,0.00016438,2]
[422740832,1779341460000,-599.763149,0.00016438,2]
[422740770,1779341460000,-343.0,0.0001629,2]
[422740833,1779341460000,-599.763149,0.00016438,2]
[422740803,1779341460000,-391.33982836,0.00016438,2]
[422740805,1779341460000,-792.97,0.00016438,2]
[422740830,1779341460000,-599.763149,0.00016438,2]
[422740800,1779341460000,-2500.0,0.00016438,2]
[422740802,1779341460000,-863.42261235,0.00016438,2]
[422740775,1779341460000,-1100.0,0.0001629,2]
[422740776,1779341460000,-507.67,0.000163,2]
[422740777,1779341460000,-433.0,0.00016323,2]
[422740774,1779341460000,-651.0,0.0001629,2]
[422740781,1779341460000,-2500.0,0.00016438,2]
[422740780,1779341460000,-1960.01664554,0.00016431,21]
[422740779,1779341460000,-1033.17,0.000164,2]
[422740778,1779341460000,-200.0,0.0001634,2]
[422740783,1779341460000,-2500.0,0.00016438,2]
[422740782,1779341460000,-2500.0,0.00016438,2]
[422740784,1779341460000,-2500.0,0.00016438,2]
[422740787,1779341460000,-2500.0,0.00016438,2]
[422740785,1779341460000,-2500.0,0.00016438,2]
[422740773,1779341460000,-1787.0,0.0001629,2]
[422740789,1779341460000,-2500.0,0.00016438,2]
[422740786,1779341460000,-2500.0,0.00016438,2]
[422740801,1779341460000,-1979.75294307,0.00016438,2]
[422740798,1779341460000,-2500.0,0.00016438,2]
[422740799,1779341460000,-2500.0,0.00016438,2]
[422740797,1779341460000,-2500.0,0.00016438,2]
[422740795,1779341460000,-2500.0,0.00016438,2]
[422740796,1779341460000,-2500.0,0.00016438,2]
[422740793,1779341460000,-2500.0,0.00016438,2]
[422740794,1779341460000,-2500.0,0.00016438,2]
[422740790,1779341460000,-2500.0,0.00016438,2]
[422740788,1779341460000,-2500.0,0.00016438,2]
[422740791,1779341460000,-2500.0,0.00016438,2]